bitfinex-derivatives/quotes_ETHF0:USTF0_20240927
["timestamp","ask_amount","ask_price","bid_price","bid_amount"]
[1727402355995,0.26636,2627.3,2627.1,0.3773]
[1727402357297,3.47415,2627.4,2627.1,0.3773]
[1727402357503,0.26638,2627.2,2626.9,3.2078]
[1727402357704,0.3783,2627.1,2626.9,3.2078]
[1727402360201,0.64469,2627.1,2626.9,3.2078]
[1727402360401,0.3783,2627.1,2626.9,3.2078]
[1727402361197,0.7525,2627.1,2626.9,3.2078]
[1727402362506,0.7525,2627.1,2626.8,0.66661]
[1727402366999,0.7525,2627.1,2626.8,0.4002]
[1727402367198,0.3802,2627.0,2626.8,0.4002]
[1727402368298,3.2078,2626.9,2626.8,0.4002]
[1727402371302,3.2078,2626.9,2626.8,1.7702]
[1727402373510,3.2078,2626.9,2626.8,0.4002]
[1727402374908,3.4742,2626.9,2626.8,0.4002]
[1727402375405,0.2664,2626.9,2626.8,0.4002]
[1727402375610,3.2078,2626.9,2626.8,0.4002]
[1727402377108,3.2078,2626.9,2626.8,1.7702]
[1727402379205,0.26639,2627.0,2626.8,1.7702]
[1727402381710,3.85249,2627.1,2626.8,1.7702]
[1727402382507,3.2078,2627.1,2626.9,1.6364]
[1727402383320,3.2078,2627.1,2626.9,1.37]
[1727402385120,3.47418,2627.1,2626.9,1.37]
[1727402385318,3.47418,2627.1,2626.9,2.36853232]
[1727402386212,0.26638,2627.2,2626.9,2.36853232]
[1727402386414,4.5778,2627.4,2626.9,1.37]
[1727402386619,0.26638,2627.2,2626.9,1.37]
[1727402387019,0.26639,2627.1,2626.9,1.37]
[1727402387222,0.26638,2627.2,2626.9,1.37]
[1727402387407,0.26638,2627.2,2626.9,2.36853232]
[1727402387813,0.26639,2627.1,2626.9,2.36853232]
[1727402388616,0.26638,2627.2,2626.9,2.36853232]
[1727402389224,0.26638,2627.1,2626.9,2.36853232]
[1727402393316,3.2078,2627.1,2626.9,2.36853232]
[1727402393516,3.47419,2627.1,2626.9,0.99853232]
[1727402394521,0.26639,2627.0,2626.9,0.99853232]
[1727402395022,0.26639,2627.0,2626.9,4.80493232]
[1727402395431,3.47419,2627.1,2626.9,4.80493232]
[1727402395625,3.47419,2627.1,2626.9,0.99853232]
[1727402399337,3.47419,2627.1,2627.0,0.99853232]
[1727402399528,3.47419,2627.1,2626.9,0.99853232]
[1727402400133,3.47419,2627.1,2627.0,0.99853232]
[1727402400938,3.47419,2627.1,2626.9,0.99853232]
[1727402401135,3.47419,2627.1,2627.0,0.99853232]
[1727402401633,0.26639,2627.0,2626.9,0.99853232]
[1727402401934,3.47418,2627.1,2626.9,2.3884783]
[1727402402139,3.47418,2627.1,2627.0,0.99853232]
[1727402403326,3.47418,2627.1,2627.0,2.38897893]
[1727402404240,0.26638,2627.1,2627.0,2.3894058]
[1727402404634,0.26638,2627.1,2627.0,2.38940905]
[1727402405436,1.45228,2627.2,2627.0,2.38940905]
[1727402405640,0.3862,2627.2,2627.0,2.36853232]
[1727402405933,0.26632,2627.8,2627.3,0.26636]
[1727402406137,0.26633,2627.6,2627.4,4.6618778]
[1727402406329,0.26633,2627.6,2627.5,0.99840369]
[1727402406639,0.3758,2627.5,2627.4,1.40093925]
[1727402406841,0.7636,2627.5,2627.4,1.40093925]
[1727402409334,0.7636,2627.5,2627.4,0.4025]
[1727402409536,0.7636,2627.5,2627.4,1.40093925]
[1727402409749,0.7636,2627.5,2627.4,0.4025]
[1727402410239,0.7636,2627.5,2627.4,1.40093925]
[1727402410437,0.7636,2627.5,2627.4,0.4025]
[1727402411238,0.7636,2627.5,2627.3,0.99843925]
[1727402411438,0.3774,2627.4,2627.3,0.99843925]
[1727402416438,0.3774,2627.4,2627.2,1.40433925]
[1727402417946,0.64376,2627.4,2627.2,1.40433925]
[1727402418445,0.26637,2627.2,2627.1,0.99843925]
[1727402418649,0.3774,2627.4,2627.1,1.39693925]
[1727402418846,0.3774,2627.4,2627.2,0.99713142]
[1727402419340,0.64376,2627.4,2627.2,0.99713142]
[1727402419539,0.26636,2627.3,2627.1,1.39563142]
[1727402421046,3.85156,2627.4,2627.1,1.39563142]
[1727402422037,0.64376,2627.4,2627.1,1.39563142]
[1727402422239,3.85156,2627.4,2627.1,1.39563142]
[1727402422550,0.64376,2627.4,2627.1,1.39563142]
[1727402424755,0.3774,2627.4,2627.1,1.39563142]
[1727402426653,0.3774,2627.4,2627.1,1.66201142]
[1727402426854,0.3774,2627.4,2627.1,1.39563142]
[1727402428550,0.3774,2627.4,2627.1,1.66201142]
[1727402429256,0.3774,2627.4,2627.2,0.99713142]
[1727402429947,0.3774,2627.4,2627.1,2.76563142]
[1727402430148,0.3774,2627.4,2627.2,0.99713142]
[1727402434160,0.3774,2627.4,2627.1,3.03201142]
[1727402434544,0.3774,2627.4,2627.2,0.99713142]
[1727402434750,0.3774,2627.4,2627.1,3.03201142]
[1727402435345,0.3774,2627.4,2627.2,0.99713142]
[1727402436959,0.3774,2627.4,2627.1,3.5333959]
[1727402436960,0.3774,2627.4,2627.1,3.03201142]
[1727402437162,0.3774,2627.4,2627.2,0.99713142]
[1727402443562,0.3774,2627.4,2627.3,0.99713142]
[1727402444163,0.3774,2627.4,2627.2,0.99713142]
[1727402444364,0.3774,2627.4,2627.3,0.99713142]
[1727402449359,0.3774,2627.4,2627.3,2.38688624]
[1727402449966,0.3774,2627.4,2627.3,1.38975482]
[1727402450360,0.3774,2627.4,2627.3,2.88827072]
[1727402450966,0.7636,2627.5,2627.3,2.88827072]
[1727402451167,0.7636,2627.5,2627.4,0.99849541]
[1727402451473,3.2078,2628.2,2627.7,0.26632]
[1727402451661,3.84917,2628.2,2627.8,3.16073805]
[1727402451861,3.84917,2628.2,2627.9,0.99863805]
[1727402452065,1.37,2628.1,2627.9,0.99863805]
[1727402452470,1.37,2628.1,2627.8,3.53843805]
[1727402453073,1.37,2628.1,2627.8,2.16843805]
[1727402453569,3.5829,2628.2,2627.6,0.99863805]
[1727402453570,4.5778,2627.9,2627.6,0.99863805]
[1727402453772,1.44632,2627.8,2627.5,0.99863805]
[1727402453973,1.37,2627.6,2627.4,0.99863805]
[1727402454168,4.5778,2627.6,2627.3,1.78753805]
[1727402454566,4.5778,2627.6,2627.4,0.99863805]
[1727402455169,4.5778,2627.6,2627.3,1.78753805]
[1727402458377,3.2078,2627.6,2627.4,0.99863805]
[1727402459074,1.37,2627.5,2627.4,0.99863805]
[1727402459275,1.37,2627.5,2627.3,1.40983805]
[1727402459470,0.3725,2627.4,2627.3,0.4112]
[1727402459874,1.7425,2627.4,2627.3,0.4112]
[1727402460076,2.5196,2627.4,2627.3,0.4112]
[1727402460879,1.1496,2627.4,2627.3,0.4112]
[1727402471189,15.5338,2627.4,2627.0,0.99863805]
[1727402471489,4.5778,2627.1,2626.5,0.99863805]
[1727402471692,4.5778,2626.6,2626.4,0.99863805]
[1727402471990,0.3794,2627.0,2626.4,1.37]
[1727402471991,1.37,2626.8,2626.4,1.37]
[1727402472195,2.5277,2626.9,2626.5,0.8031]
[1727402472382,2.5277,2626.9,2626.6,0.4002]
[1727402472383,3.2078,2626.8,2626.6,0.4002]
[1727402472783,2.79411,2626.9,2626.6,0.4002]
[1727402473287,0.26641,2626.8,2626.6,0.4002]
[1727402474687,3.2078,2627.1,2626.7,1.37]
[1727402474882,3.2078,2627.1,2626.8,1.37]
[1727402475191,3.2078,2627.1,2626.9,0.793]
[1727402475379,3.2078,2627.1,2627.0,1.37]
[1727402475584,4.078,2627.5,2627.0,5.84619]
[1727402475585,3.2078,2627.5,2627.0,5.84619]
[1727402475787,3.2078,2627.5,2627.0,2.03979]
[1727402476086,4.84414,2627.5,2627.0,1.7734]
[1727402476487,4.84414,2627.5,2627.0,2.03979]
[1727402476488,4.5778,2627.5,2627.0,2.03979]
[1727402477298,4.84414,2627.5,2627.0,1.7734]
[1727402478396,4.5778,2627.5,2627.0,2.03979]
[1727402479890,4.5778,2627.5,2627.0,1.7734]
[1727402480092,4.5778,2627.5,2627.0,2.03979]
[1727402480787,4.84414,2627.5,2627.0,2.03979]
[1727402483396,0.26635,2627.4,2627.0,1.7734]
[1727402483596,4.5778,2627.5,2627.0,2.03979]
[1727402483995,4.84415,2627.5,2627.0,2.03979]
[1727402484200,4.84415,2627.5,2627.0,1.7734]
[1727402486885,4.84415,2627.5,2627.0,2.03979]
[1727402487091,0.26635,2627.4,2627.0,1.7734]
[1727402488694,3.2078,2627.5,2627.3,1.37]
[1727402488897,3.47414,2627.5,2627.4,1.193]
[1727402489092,4.84414,2627.5,2627.4,1.193]
[1727402489295,0.26638,2627.2,2626.9,0.99863805]
[1727402489495,1.63638,2627.2,2626.9,0.4049]
[1727402489894,0.26638,2627.1,2626.9,0.4049]
[1727402490093,1.63638,2627.2,2626.9,0.4049]
[1727402490290,4.84418,2627.2,2626.9,0.4049]
[1727402490492,1.63638,2627.2,2626.9,0.4049]
[1727402490698,0.3753,2627.1,2626.9,0.4049]
[1727402491895,0.64168,2627.1,2626.9,0.4049]
[1727402492097,1.7453,2627.1,2626.6,0.99863805]
[1727402492297,4.5778,2626.9,2626.6,0.99863805]
[1727402492497,2.4099,2627.0,2626.6,2.36863805]
[1727402492898,0.2664,2626.9,2626.6,2.36863805]
[1727402495109,0.389,2627.0,2626.7,1.37]
[1727402495295,0.3753,2627.1,2626.7,1.37]
[1727402495607,5.23907,2627.3,2626.9,1.37]
[1727402495797,5.23907,2627.3,2627.0,1.189]
[1727402496202,4.9727,2627.3,2627.0,1.189]
[1727402496404,0.3984,2627.2,2627.0,1.189]
[1727402497201,3.6027,2627.3,2627.0,1.189]
[1727402497202,3.6027,2627.3,2627.0,2.559]
[1727402497706,3.6027,2627.3,2627.0,2.82539]
[1727402498002,3.6027,2627.3,2627.0,2.559]
[1727402500006,3.6027,2627.3,2627.0,2.82539]
[1727402500311,3.6027,2627.3,2627.0,3.55763805]
[1727402500499,3.6027,2627.3,2627.0,3.82402805]
[1727402501199,3.6027,2627.3,2627.0,3.55763805]
[1727402502205,3.6027,2627.3,2627.0,2.559]
[1727402503296,3.6027,2627.3,2627.0,2.82539]
[1727402503510,3.6027,2627.3,2627.0,2.559]
[1727402504609,0.089,2627.8,2627.2,1.37]
[1727402504808,0.35531,2627.9,2627.1,9.39474885]
[1727402504809,0.64581,2627.9,2627.5,1.37]
[1727402505008,0.64581,2627.9,2627.6,1.1609]
[1727402505206,0.3795,2627.9,2627.6,1.1609]
[1727402505706,1.7495,2627.9,2627.6,1.1609]
[1727402505904,1.37,2627.7,2627.6,1.1609]
[1727402506300,1.7495,2627.9,2627.6,1.1609]
[1727402506505,0.26632,2627.7,2627.6,1.1609]
[1727402507110,0.26632,2627.8,2627.6,1.1609]
[1727402507315,0.26632,2627.7,2627.6,1.1609]
[1727402507714,0.26633,2627.6,2627.3,1.37]
[1727402508015,0.26633,2627.6,2627.3,2.5559]
[1727402508212,0.3719,2627.5,2627.3,2.5559]
[1727402512814,0.3719,2627.5,2627.3,1.1859]
[1727402513021,0.63825,2627.5,2627.3,1.1859]
[1727402514516,0.3719,2627.5,2627.3,1.1859]
[1727402514817,0.63824,2627.5,2627.3,1.1859]
[1727402515422,0.3719,2627.5,2627.3,1.1859]
[1727402515616,0.63824,2627.5,2627.3,1.1859]
[1727402515812,0.3719,2627.5,2627.3,1.1859]
[1727402516219,0.63824,2627.5,2627.3,1.1859]
[1727402517923,0.3719,2627.5,2627.3,1.1859]
[1727402518109,3.47412,2627.7,2627.3,2.5559]
[1727402518313,0.2663,2628.0,2627.5,1.37]
[1727402518512,1.1862,2628.1,2627.8,1.63631]
[1727402518709,0.3954,2628.1,2628.0,1.37]
[1727402519312,0.3954,2628.1,2627.9,2.1683]
[1727402523019,0.66168,2628.1,2627.9,0.7983]
[1727402523220,1.7654,2628.1,2627.9,0.7983]
[1727402525720,0.3954,2628.1,2627.9,0.7983]
[1727402527730,1.7654,2628.1,2627.9,0.7983]
[1727402530522,3.2078,2628.2,2627.9,0.7983]
[1727402530726,0.399,2628.3,2628.0,1.37]
[1727402530927,0.7859,2628.4,2628.0,1.37]
[1727402530928,0.3883,2628.4,2628.0,1.37]
[1727402531129,0.3883,2628.4,2627.9,0.7983]
[1727402531130,0.26626,2628.3,2627.9,0.7983]
[1727402531323,5.64076,2628.3,2627.9,0.7983]
[1727402531830,4.0045,2628.3,2627.9,1.0646]
[1727402532048,3.2078,2628.3,2627.9,1.0646]
[1727402533233,3.2078,2628.3,2627.9,0.7983]
[1727402533534,3.2078,2628.3,2628.0,1.37]
[1727402534427,3.2078,2628.3,2628.1,1.37]
[1727402534735,3.2078,2628.3,2628.2,0.3847]
[1727402535433,3.2078,2628.3,2628.2,0.65097]
[1727402535643,4.9811,2628.8,2628.2,4.1895]
[1727402535837,1.7748,2628.7,2628.3,0.7621]
[1727402536032,1.37,2628.5,2628.3,0.7621]
[1727402536533,5.1748,2628.4,2627.8,4.131]
[1727402536737,1.37,2628.0,2627.9,0.4008]
[1727402536933,4.5778,2628.1,2627.9,0.4008]
[1727402537238,3.2078,2628.1,2627.9,0.4008]
[1727402537429,3.2078,2628.1,2628.0,0.4111]
[1727402541341,3.2078,2628.1,2627.9,0.4008]
[1727402541544,0.7651,2628.0,2627.8,0.3731]
[1727402542046,0.397,2627.9,2627.8,0.3731]
[1727402543037,0.7651,2628.0,2627.8,0.3731]
[1727402543446,3.47409,2628.1,2627.8,0.3731]
[1727402544647,3.2078,2628.1,2627.8,0.3731]
[1727402545850,3.2078,2628.1,2627.8,0.63941]
[1727402546247,3.2078,2628.1,2627.8,0.3731]
[1727402548850,3.2078,2628.1,2627.8,0.63941]
[1727402549445,3.2078,2628.1,2627.8,0.3731]
[1727402549852,3.2078,2628.1,2627.9,2.97]
[1727402550051,3.2078,2628.1,2628.0,0.3831]
[1727402550253,3.2078,2628.1,2628.0,0.775]
[1727402550452,3.2078,2628.1,2628.0,4.5798]
[1727402550655,3.2968,2628.7,2628.0,11.84472805]
[1727402550956,0.3992,2628.6,2628.0,1.77363805]
[1727402551158,3.47406,2628.4,2628.0,1.77363805]
[1727402551544,0.7637,2628.3,2628.0,1.77363805]
[1727402552057,1.02996,2628.3,2628.0,0.775]
[1727402552253,0.3957,2628.2,2628.0,0.775]
[1727402557451,0.7637,2628.3,2628.0,1.04129]
[1727402557655,0.7637,2628.3,2628.0,0.775]
[1727402558358,0.7637,2628.3,2628.1,1.37]
[1727402558663,3.2078,2628.4,2628.2,1.37]
[1727402558862,3.2078,2628.4,2628.3,1.04946]
[1727402559063,3.2078,2628.4,2628.3,0.7832]
[1727402559266,3.2078,2628.4,2628.3,4.588]
[1727402559458,3.2078,2628.4,2628.3,4.85426]
[1727402560864,0.7685,2628.7,2628.3,7.7958]
[1727402561066,0.7685,2628.7,2628.5,1.37]
[1727402561562,0.7685,2628.7,2628.6,0.3903]
[1727402561751,0.3891,2628.7,2628.6,0.3903]
[1727402563759,0.3983,2629.0,2628.6,5.57510594]
[1727402563955,0.7771,2629.0,2628.7,1.7565]
[1727402564152,0.7771,2629.0,2628.8,0.3924]
[1727402564565,0.7771,2629.0,2628.9,0.3963]
[1727402566764,0.3983,2629.0,2628.9,1.7663]
[1727402567259,0.4039,2629.1,2628.9,1.7663]
[1727402567762,0.4039,2629.1,2629.0,1.37]
[1727402571164,0.3997,2629.2,2629.0,1.37]
[1727402571463,0.3997,2629.2,2629.1,0.4011]
[1727402577269,0.3771,2629.3,2629.1,0.4011]
[1727402577470,0.7842,2629.3,2629.2,1.37]
[1727402577667,0.7842,2629.3,2629.2,1.7682]
[1727402578267,0.4071,2629.3,2629.2,1.7682]
[1727402578474,0.3988,2629.5,2629.2,1.7682]
[1727402578773,0.66494,2629.5,2629.4,1.37]
[1727402580172,0.3988,2629.5,2629.4,1.37]
[1727402583477,0.819,2629.6,2629.4,1.37]
[1727402584782,0.4057,2629.7,2629.5,0.3722]
[1727402584978,3.2078,2629.8,2629.6,1.747]
[1727402586782,3.2078,2629.8,2629.7,0.3875]
[1727402587875,4.4277,2630.1,2629.7,0.3875]
[1727402588072,4.4277,2630.1,2630.0,1.37]
[1727402588280,1.2199,2630.1,2630.0,1.37]
[1727402590579,0.404,2630.1,2630.0,1.37]
[1727402591885,3.2078,2630.4,2630.0,1.37]
[1727402592100,3.2078,2630.4,2630.3,1.37]
[1727402592275,0.767,2630.5,2630.3,1.37]
[1727402592983,0.4081,2630.7,2630.3,1.37]
[1727402593284,0.4081,2630.7,2630.6,1.37]
[1727402593679,0.67412,2630.7,2630.6,1.37]
[1727402593880,0.67412,2630.7,2630.4,1.37]
[1727402594081,3.2078,2630.5,2630.3,1.37]
[1727402594280,0.7806,2630.4,2630.3,1.37]
[1727402597895,0.7806,2630.4,2630.2,1.37]
[1727402598099,0.392,2630.3,2630.2,1.37]
[1727402600589,3.2078,2630.8,2630.2,5.1716]
[1727402600791,0.3756,2630.7,2630.6,1.37]
[1727402601184,0.26603,2630.6,2630.3,0.3997]
[1727402601498,0.66523,2630.6,2630.3,1.7697]
[1727402601995,0.3992,2630.6,2630.3,1.7697]
[1727402602895,0.3992,2630.6,2630.5,1.37]
[1727402603991,0.3992,2630.6,2630.5,1.7813]
[1727402608898,0.3756,2630.7,2630.5,1.7813]
[1727402609101,0.3756,2630.7,2630.6,1.37]
[1727402611909,3.86921,2630.8,2630.6,1.37]
[1727402613406,3.6032,2630.8,2630.6,1.37]
[1727402614818,0.3827,2630.7,2630.6,1.37]
[1727402620710,0.3827,2630.7,2630.5,0.4113]
[1727402620711,4.1843,2630.7,2630.5,1.37]
[1727402620910,0.3748,2630.6,2630.5,1.37]
[1727402621410,0.3748,2630.6,2630.5,1.7492]
[1727402622805,0.3827,2630.7,2630.5,1.7492]
[1727402626005,0.3827,2630.7,2630.5,1.37]
[1727402626209,0.3838,2630.6,2630.3,1.7697]
[1727402626512,3.6032,2630.8,2630.5,1.37]
[1727402626513,3.86921,2630.8,2630.5,1.37]
[1727402626708,3.86921,2630.8,2630.6,2.154]
[1727402626709,3.6032,2630.8,2630.6,2.154]
[1727402627315,3.2078,2630.8,2630.6,2.154]
[1727402627614,3.2078,2630.8,2630.7,0.3858]
[1727402631520,0.266,2630.9,2630.7,0.3858]
[1727402631711,3.4738,2630.9,2630.7,0.3858]
[1727402634820,3.2078,2630.9,2630.8,1.37]
[1727402635029,3.2078,2631.2,2630.8,1.37]
[1727402635229,3.581,2631.2,2631.1,1.37]
[1727402636420,7.3818,2631.2,2631.1,1.37]
[1727402636815,3.581,2631.2,2631.1,1.37]
[1727402637020,7.3818,2631.2,2631.0,1.7745]
[1727402637324,3.581,2631.2,2631.0,1.37]
[1727402637522,3.8008,2631.1,2630.9,1.37]
[1727402637713,3.84697,2631.2,2630.9,1.37]
[1727402638121,3.581,2631.2,2630.9,1.37]
[1727402638426,0.26598,2631.1,2630.9,1.37]
[1727402638616,3.84697,2631.2,2630.9,1.37]
[1727402639214,0.26598,2631.1,2630.9,1.37]
[1727402639419,3.581,2631.2,2630.7,1.7558]
[1727402639621,0.26598,2631.1,2630.7,1.7558]
[1727402640815,3.581,2631.2,2630.7,1.7558]
[1727402641119,0.26598,2631.1,2630.7,1.7558]
[1727402641315,3.581,2631.2,2630.7,1.7558]
[1727402641519,0.26598,2631.1,2630.7,1.7558]
[1727402641927,3.581,2631.2,2630.7,1.7558]
[1727402642126,3.84697,2631.2,2630.7,1.7558]
[1727402642320,3.581,2631.2,2630.7,1.7558]
[1727402642521,3.84697,2631.2,2630.7,1.7558]
[1727402643418,3.581,2631.2,2630.7,1.7558]
[1727402643622,3.84698,2631.2,2630.7,1.7558]
[1727402644527,3.581,2631.2,2630.7,1.7558]
[1727402644829,0.79589509,2631.1,2630.9,1.37]
[1727402645026,4.23431744,2631.1,2630.9,1.37]
[1727402645228,4.23431744,2631.0,2630.9,1.37]
[1727402646122,4.50030744,2631.0,2630.7,1.7558]
[1727402646330,1.98169509,2630.9,2630.7,1.7558]
[1727402650029,0.79589509,2630.9,2630.7,1.7558]
[1727402650232,7.44722235,2631.2,2630.7,1.7558]
[1727402650432,0.79571597,2631.1,2630.9,1.37]
[1727402650727,4.23413832,2631.1,2630.9,1.37]
[1727402650935,3.70440235,2631.1,2631.0,0.3999]
[1727402651134,4.23414364,2631.1,2631.0,0.3999]
[1727402651429,0.79572129,2631.1,2631.0,0.3999]
[1727402651630,3.43842235,2631.3,2631.0,4.85309]
[1727402651831,0.089,2631.8,2631.5,0.26594]
[1727402651832,3.43842235,2631.7,2631.5,0.26594]
[1727402652031,0.206,2632.2,2631.5,0.26594]
[1727402652032,4.43720108,2632.1,2631.6,3.5337782]
[1727402652238,0.26588,2632.1,2632.0,1.37]
[1727402652537,0.26591,2631.8,2631.6,0.7682]
[1727402652735,1.06272,2631.7,2631.6,0.3818]
[1727402652940,2.5479,2631.7,2631.1,2.3659782]
[1727402653234,3.2078,2631.3,2631.1,2.1549]
[1727402653536,0.4012,2631.2,2631.1,2.1549]
[1727402654621,0.4012,2631.2,2631.0,1.7518]
[1727402654821,0.26598,2631.1,2631.0,1.7518]
[1727402655033,0.4012,2631.2,2631.0,1.37]
[1727402655034,0.66717,2631.2,2631.0,1.37]
[1727402655336,0.66717,2631.2,2630.8,0.7875]
[1727402655337,4.202,2631.2,2630.9,1.37]
[1727402655525,0.66717,2631.2,2630.9,1.37]
[1727402656431,3.2078,2631.0,2630.9,1.37]
[1727402658235,3.47379,2631.0,2630.9,1.37]
[1727402658436,0.26599,2631.0,2630.9,1.37]
[1727402658627,3.47379,2631.0,2630.9,1.37]
[1727402661133,0.26601,2630.9,2630.7,1.76]
[1727402661338,1.05571,2630.9,2630.7,1.76]
[1727402661636,0.26601,2630.8,2630.7,1.76]
[1727402662939,3.2078,2631.0,2630.7,1.76]
[1727402663154,3.47379,2631.0,2630.8,1.37]
[1727402663638,0.266,2630.9,2630.8,1.37]
[1727402664944,0.26603,2630.6,2630.5,0.3723]
[1727402665146,4.5778,2630.7,2630.3,2.1288]
[1727402665345,3.47385,2630.4,2630.3,0.7588]
[1727402665543,3.47385,2630.4,2630.3,0.3762]
[1727402665741,0.26606,2630.3,2630.2,0.4021]
[1727402665938,0.67216,2630.3,2630.2,0.4021]
[1727402666141,1.05246,2630.3,2630.2,0.4021]
[1727402669055,0.7864,2630.3,2630.2,0.4021]
[1727402669253,0.7864,2630.3,2630.2,0.7872]
[1727402670563,0.4061,2630.3,2630.2,0.7872]
[1727402673056,0.26605,2630.4,2630.2,0.7872]
[1727402673266,0.26605,2630.4,2630.3,1.37]
[1727402673561,0.26605,2630.4,2630.3,1.7451]
[1727402674461,3.47385,2630.4,2630.3,1.7451]
[1727402674964,0.26605,2630.4,2630.3,1.7451]
[1727402675969,8.3794,2630.4,2630.0,0.9959782]
[1727402676262,0.26611,2629.8,2629.7,0.355]
[1727402676461,0.26611,2629.8,2629.3,1.49795707]
[1727402676462,0.26613,2629.6,2629.3,0.7762]
[1727402676660,6.1778,2629.8,2629.3,0.7762]
[1727402676661,3.2078,2629.5,2629.3,0.7762]
[1727402676967,0.26615,2629.4,2628.8,0.6212]
[1727402677166,6.1778,2629.5,2628.8,1.4378]
[1727402677167,3.2078,2629.2,2628.8,1.4378]
[1727402679658,0.26616,2629.3,2628.8,0.7762]
[1727402679659,3.2078,2628.9,2628.8,0.7762]
[1727402680062,9.9818,2628.9,2628.5,0.8018]
[1727402680260,9.9818,2628.9,2628.2,0.355]
[1727402680261,3.2078,2628.6,2628.2,0.355]
[1727402680462,0.4099,2628.5,2628.1,0.7755]
[1727402681053,3.2078,2628.3,2628.1,0.7755]
[1727402681668,3.2078,2628.3,2628.0,3.3718]
[1727402682364,3.2078,2628.3,2628.0,3.63809]
[1727402682566,3.2078,2628.3,2628.1,2.97]
[1727402684763,3.2078,2628.3,2628.0,0.4018]
[1727402685371,0.26625,2628.4,2628.0,0.4018]
[1727402685561,3.47407,2628.3,2628.0,0.4018]
[1727402686474,0.26629,2628.0,2627.7,0.355]
[1727402686661,3.2078,2627.9,2627.6,0.7889]
[1727402687566,3.2078,2627.9,2627.6,1.05523]
[1727402689465,0.66318,2628.1,2627.6,1.05523]
[1727402693778,0.66319,2628.1,2627.6,0.7889]
[1727402693968,0.66319,2628.1,2627.6,1.05523]
[1727402694964,0.26629,2628.0,2627.6,1.05523]
[1727402697369,0.26629,2628.0,2627.2,3.5628]
[1727402697370,0.26635,2627.4,2627.2,0.355]
[1727402697565,0.26636,2627.3,2627.0,0.7787]
[1727402697767,6.1778,2627.3,2627.0,0.7787]
[1727402697973,0.26637,2627.2,2627.0,0.7787]
[1727402698361,6.1778,2627.3,2627.0,0.7787]
[1727402698574,0.26638,2627.2,2627.0,0.7787]
[1727402700471,3.2078,2627.3,2627.0,0.7787]
[1727402703565,3.47414,2627.6,2627.1,3.23637]
[1727402703762,0.26635,2627.5,2627.1,2.97]
[1727402703972,3.47413,2627.6,2627.2,0.26637]
[1727402704183,3.2078,2627.6,2627.1,0.26638]
[1727402704572,3.47414,2627.6,2627.1,0.26638]
[1727402706273,0.26634,2627.5,2627.0,1.04509]
[1727402707873,3.47413,2627.6,2627.1,0.26638]
[1727402708875,3.47413,2627.6,2627.2,0.26637]
[1727402709284,3.47413,2627.6,2627.1,2.97]
[1727402709485,0.3775,2627.8,2627.3,2.97]
[1727402709776,0.3775,2627.8,2627.1,3.2078]
[1727402709777,0.26634,2627.5,2627.4,0.3892]
[1727402709971,0.26635,2627.4,2627.1,3.2078]
[1727402710171,0.26635,2627.4,2627.1,3.597]
[1727402712783,3.2078,2627.7,2627.1,3.597]
[1727402713288,0.26636,2627.4,2627.1,3.597]
[1727402713489,3.2078,2627.7,2627.1,3.597]
[1727402713684,0.26636,2627.4,2627.1,3.597]
[1727402714183,0.26635,2627.5,2627.1,3.86338]
[1727402714783,0.26637,2627.3,2627.1,0.3892]
[1727402715092,0.26636,2627.3,2627.1,0.3892]
[1727402715897,1.03876,2627.4,2627.1,0.3892]
[1727402716087,0.26637,2627.3,2627.1,0.3892]
[1727402716288,0.7724,2627.4,2627.1,0.3892]
[1727402716289,1.03876,2627.4,2627.1,0.3892]
[1727402716588,0.26636,2627.3,2627.1,0.3892]
[1727402717484,1.03876,2627.4,2627.1,0.3892]
[1727402717682,3.6116,2627.9,2627.1,3.3592]
[1727402717881,3.2078,2627.9,2627.3,6.1778]
[1727402718191,0.26631,2627.8,2627.4,0.67855]
[1727402718386,0.26631,2627.8,2627.5,0.3844]
[1727402718695,0.26631,2627.8,2627.5,0.7608]
[1727402718988,3.2078,2627.9,2627.5,0.7608]
[1727402719382,0.26632,2627.8,2627.5,0.7608]
[1727402720089,0.26632,2627.7,2627.5,0.7608]
[1727402720395,0.26633,2627.7,2627.5,0.7608]
[1727402720584,0.26633,2627.6,2627.5,0.7608]
[1727402724886,3.86093,2627.6,2627.5,0.3764]
[1727402727395,0.65313,2627.6,2627.5,0.3764]
[1727402727595,0.3868,2627.6,2627.5,0.3764]
[1727402727797,0.65313,2627.6,2627.5,0.3764]
[1727402729998,3.604,2628.0,2627.5,0.3764]
[1727402730190,0.26632,2627.7,2627.6,0.3772]
[1727402730497,0.3797,2627.9,2627.6,0.3772]
[1727402730698,0.26632,2627.7,2627.6,0.3772]
[1727402733496,0.26633,2627.6,2627.5,0.3764]
[1727402733898,0.26633,2627.6,2627.4,0.4122]
[1727402734202,0.3809,2627.5,2627.4,0.4122]
[1727402734593,0.3809,2627.5,2627.4,0.67855]
[1727402734794,0.26633,2627.7,2627.4,0.4122]
[1727402735303,0.26633,2627.6,2627.4,0.4122]
[1727402735897,0.26633,2627.7,2627.4,0.67855]
[1727402736095,6.1778,2627.8,2627.4,0.67855]
[1727402736096,6.44411,2627.8,2627.4,0.67855]
[1727402736299,0.26632,2627.7,2627.4,0.67855]